Workbook

Sheet COMPETENCES (hidden)
A1: Satisfaction | B1: Tice | C1: Nombre de niveaux | D1: Nombre de compétences | E1: Nombre d'items | F1: Compétences | G1: =F2 -> S_APPROPRIER | H1: =F3 -> ANALYSER_RAISONNER | I1: =F4 -> RÉALISER | J1: =F5 -> VALIDER | K1: =F6 -> COMMUNIQUER | L1: 0 | M1: 0 | N1: =F9 -> 0 | O1: =F10 -> 0 | P1: =F11 -> 0
A2: 0 | B2: OUI | C2: =COUNTA(A2:A6) -> 3 | D2: =COUNTA(F2:F11) -> 5 | E2: =COUNTA(G2:G4) -> 1 | F2: S_APPROPRIER | G2: Rechercher, extraire et organiser l'information | H2: Emettre une conjecture | I2: Choisir ou exécuter une méthode de résolution | J2: Contrôler la vraissemblance d'une conjecture | K2: Rendre compte d'une démarche
A3: 1 | B3: NON | E3: =COUNTA(H2:H4) -> 2 | F3: ANALYSER_RAISONNER | H3: Proposer une méthode de résolution | I3: Choisir un protocole expérimental, éxécuter, simuler | J3: Critiquer un résultat, argumenter
A4: 2 | E4: =COUNTA(I2:I4) -> 2 | F4: RÉALISER
E5: =COUNTA(J2:J4) -> 2 | F5: VALIDER
E6: =COUNTA(Comp5) -> 1 | F6: COMMUNIQUER
E7: =COUNTA(L2:L4) -> 0
E8: =COUNTA(M2:M4) -> 0
E9: =COUNTA(N2:N4) -> 0
E10: =COUNTA(O2:O4) -> 0
E11: =COUNTA(P2:P4) -> 0
A100: Nombre de compétences | B100: =Nb_Compétences -> 5
A101: Taille grille évaluation | C101: Taille grille notation
A102: Nature du classeur | B102: CLASSE
A103: Stats déjà faites | B103: 0
A104: NB items par compétences | B104: =E2 -> 1 | C104: =E3 -> 2 | D104: =E4 -> 2 | E104: =E5 -> 2 | F104: =E6 -> 1 | G104: =E7 -> 0 | H104: =E8 -> 0 | I104: =E9 -> 0 | J104: =E10 -> 0 | K104: =E11 -> 0
A105: Intitulés de compétences | B105: =F2 -> S_APPROPRIER | C105: =F3 -> ANALYSER_RAISONNER | D105: =F4 -> RÉALISER | E105: =F5 -> VALIDER | F105: =F6 -> COMMUNIQUER | G105: =F7 -> 0 | H105: =F8 -> 0 | I105: =F9 -> 0 | J105: =F10 -> 0 | K105: =F11 -> 0
A106: Couleurs compétences | B106: 65535 | C106: 4911395 | D106: 12698107 | E106: 49407 | F106: 15773696 | G106: 10615289 | H106: 9803737
A107: Intitulés d'items | B107: =G2 -> Rechercher, extraire et organiser l'information | C107: =H2 -> Emettre une conjecture | D107: Choisir ou exécuter une méthode de résolution | E107: Contrôler la vraissemblance d'une conjecture | F107: Rendre compte d'une démarche | G107: 0 | H107: 0 | I107: 0 | J107: 0 | K107: 0
B108: =G3 -> 0 | C108: =H3 -> Proposer une méthode de résolution | D108: =I3 -> Choisir un protocole expérimental, éxécuter, simuler | E108: =J3 -> Critiquer un résultat, argumenter | F108: =K3 -> 0 | G108: =L3 -> 0 | H108: =M3 -> 0 | I108: =N3 -> 0 | J108: =O3 -> 0 | K108: =P3 -> 0
B109: 0 | C109: 0 | D109: 0 | E109: 0 | F109: 0 | G109: 0 | H109: 0 | I109: 0 | J109: 0 | K109: 0

Sheet GRILLE VIERGE (hidden)
A1: CLASSE | J1: GRILLE DE NOTATION | R1: PONDÉRATION
A2: ELEVE | K2: Barème | L2: Appréciation du niveau | P2: Note | R2: Mathématiques
A3: Exercice | B3: Question | C3: Attendu | D3: Niveau | E3: Compétence | F3: Item de compétence visé | G3: Barème | H3: Note | I3: TICE | J3: S_APPROPRIER | L3: TI | M3: I | N3: S | O3: TS | R3: Note | S3: Barème
G4: 0 | H4: =G4*D4/2 -> 0 | I4: NON | J4: Rechercher, extraire et organiser l'information | K4: =SUMIF($F$4:$F$50,J4,$G$4:$G$50) -> 0 | L4: =IF(K4=0,"",IF(P4/K4<0.25,"x","")) ->  | M4: =IF(K4=0,"",IF(AND(P4/K4<0.5,P4/K4>=0.25),"x","")) ->  | N4: =IF(K4=0,"",IF(AND(P4/K4<0.75,P4/K4>=0.5),"x","")) ->  | O4: =IF(K4=0,"",IF(P4/K4>0.75,"x","")) ->  | P4: =SUMIF($F$4:$F$50,J4,$H$4:$H$50) -> 0 | R4: S_APPROPRIER
G5: 0 | H5: 0 | I5: NON | K5: =SUM(K4:K4) -> 0 | P5: =SUM(P4:P4) -> 0 | R5: =P5/K5*S5 ->  | S5: 1 | T5: =K5/K21 -> 
G6: 0 | H6: 0 | I6: NON | J6: ANALYSER_RAISONNER | L6: TI | M6: I | N6: S | O6: TS | R6: ANALYSER_RAISONNER
G7: 0 | H7: 0 | I7: NON | J7: Emettre une conjecture | K7: =SUMIF($F$4:$F$50,J7,$G$4:$G$50) -> 0 | L7: =IF(K7=0,"",IF(P7/K7<0.25,"x","")) ->  | M7: =IF(K7=0,"",IF(AND(P7/K7<0.5,P7/K7>=0.25),"x","")) ->  | N7: =IF(K7=0,"",IF(AND(P7/K7<0.75,P7/K7>=0.5),"x","")) ->  | O7: =IF(K7=0,"",IF(P7/K7>0.75,"x","")) ->  | P7: =SUMIF($F$4:$F$50,J7,$H$4:$H$50) -> 0 | R7: =P9/K9*S7 ->  | S7: 1 | T7: =K9/K21 -> 
G8: 0 | H8: 0 | I8: NON | J8: Proposer une méthode de résolution | K8: =SUMIF($F$4:$F$50,J8,$G$4:$G$50) -> 0 | L8: =IF(K8=0,"",IF(P8/K8<0.25,"x","")) ->  | M8: =IF(K8=0,"",IF(AND(P8/K8<0.5,P8/K8>=0.25),"x","")) ->  | N8: =IF(K8=0,"",IF(AND(P8/K8<0.75,P8/K8>=0.5),"x","")) ->  | O8: =IF(K8=0,"",IF(P8/K8>0.75,"x","")) ->  | P8: =SUMIF($F$4:$F$50,J8,$H$4:$H$50) -> 0 | R8: RÉALISER
G9: 0 | H9: 0 | I9: NON | K9: =SUM(K7:K8) -> 0 | P9: =SUM(P7:P8) -> 0 | R9: =P13/K13*S9 ->  | S9: 1 | T9: =K13/K21 -> 
G10: 0 | H10: 0 | I10: NON | J10: RÉALISER | L10: TI | M10: I | N10: S | O10: TS | R10: VALIDER
G11: 0 | H11: 0 | I11: NON | J11: Choisir ou exécuter une méthode de résolution | K11: =SUMIF($F$4:$F$50,J11,$G$4:$G$50) -> 0 | L11: =IF(K11=0,"",IF(P11/K11<0.25,"x","")) ->  | M11: =IF(K11=0,"",IF(AND(P11/K11<0.5,P11/K11>=0.25),"x","")) ->  | N11: =IF(K11=0,"",IF(AND(P11/K11<0.75,P11/K11>=0.5),"x","")) ->  | O11: =IF(K11=0,"",IF(P11/K11>0.75,"x","")) ->  | P11: =SUMIF($F$4:$F$50,J11,$H$4:$H$50) -> 0 | R11: =P17/K17*S11 ->  | S11: 1 | T11: =K17/K21 -> 
G12: 0 | H12: 0 | I12: NON | J12: Choisir un protocole expérimental, éxécuter, simuler | K12: =SUMIF($F$4:$F$50,J12,$G$4:$G$50) -> 0 | L12: =IF(K12=0,"",IF(P12/K12<0.25,"x","")) ->  | M12: =IF(K12=0,"",IF(AND(P12/K12<0.5,P12/K12>=0.25),"x","")) ->  | N12: =IF(K12=0,"",IF(AND(P12/K12<0.75,P12/K12>=0.5),"x","")) ->  | O12: =IF(K12=0,"",IF(P12/K12>0.75,"x","")) ->  | P12: =SUMIF($F$4:$F$50,J12,$H$4:$H$50) -> 0 | R12: COMMUNIQUER
G13: 0 | H13: 0 | I13: NON | K13: =SUM(K11:K12) -> 0 | P13: =SUM(P11:P12) -> 0 | R13: =P20/K20*S13 ->  | S13: 1 | T13: =K20/K21 -> 
G14: 0 | H14: 0 | I14: NON | J14: VALIDER | L14: TI | M14: I | N14: S | O14: TS | R14: TOTAL
G15: 0 | H15: 0 | I15: NON | J15: Contrôler la vraissemblance d'une conjecture | K15: =SUMIF($F$4:$F$50,J15,$G$4:$G$50) -> 0 | L15: =IF(K15=0,"",IF(P15/K15<0.25,"x","")) ->  | M15: =IF(K15=0,"",IF(AND(P15/K15<0.5,P15/K15>=0.25),"x","")) ->  | N15: =IF(K15=0,"",IF(AND(P15/K15<0.75,P15/K15>=0.5),"x","")) ->  | O15: =IF(K15=0,"",IF(P15/K15>0.75,"x","")) ->  | P15: =SUMIF($F$4:$F$50,J15,$H$4:$H$50) -> 0 | R15: =SUM(R5,R7,R9,R11,R13) ->  | S15: =SUM(S5,S7,S9,S11,S13) -> 5
G16: 0 | H16: 0 | I16: NON | J16: Critiquer un résultat, argumenter | K16: =SUMIF($F$4:$F$50,J16,$G$4:$G$50) -> 0 | L16: =IF(K16=0,"",IF(P16/K16<0.25,"x","")) ->  | M16: =IF(K16=0,"",IF(AND(P16/K16<0.5,P16/K16>=0.25),"x","")) ->  | N16: =IF(K16=0,"",IF(AND(P16/K16<0.75,P16/K16>=0.5),"x","")) ->  | O16: =IF(K16=0,"",IF(P16/K16>0.75,"x","")) ->  | P16: =SUMIF($F$4:$F$50,J16,$H$4:$H$50) -> 0 | R16: Dont TICE
G17: 0 | H17: 0 | I17: NON | K17: =SUM(K15:K16) -> 0 | P17: =SUM(P15:P16) -> 0 | R17: =SUMIF($I$4:$I$50,"OUI",$G$4:$G$50) -> 0 | S17: =R17/K21 -> 
G18: 0 | H18: 0 | I18: NON | J18: COMMUNIQUER | L18: TI | M18: I | N18: S | O18: TS
G19: 0 | H19: 0 | I19: NON | J19: Rendre compte d'une démarche | K19: =SUMIF($F$4:$F$50,J19,$G$4:$G$50) -> 0 | L19: =IF(K19=0,"",IF(P19/K19<0.25,"x","")) ->  | M19: =IF(K19=0,"",IF(AND(P19/K19<0.5,P19/K19>=0.25),"x","")) ->  | N19: =IF(K19=0,"",IF(AND(P19/K19<0.75,P19/K19>=0.5),"x","")) ->  | O19: =IF(K19=0,"",IF(P19/K19>0.75,"x","")) ->  | P19: =SUMIF($F$4:$F$50,J19,$H$4:$H$50) -> 0
G20: 0 | H20: 0 | I20: NON | K20: =SUM(K19:K19) -> 0 | P20: =SUM(P19:P19) -> 0
G21: 0 | H21: 0 | I21: NON | K21: =SUM(K5,K9,K13,K17,K20) -> 0 | P21: =SUM(P5,P9,P13,P17,P20) -> 0
G22: 0 | H22: 0 | I22: NON
G23: 0 | H23: 0 | I23: NON
G24: 0 | H24: 0 | I24: NON
G25: 0 | H25: 0 | I25: NON
G26: 0 | H26: 0 | I26: NON
G27: 0 | H27: 0 | I27: NON
G28: 0 | H28: 0 | I28: NON
G29: 0 | H29: 0 | I29: NON
G30: 0 | H30: 0 | I30: NON
G31: 0 | H31: 0 | I31: NON
G32: 0 | H32: 0 | I32: NON
G33: 0 | H33: 0 | I33: NON
G34: 0 | H34: 0 | I34: NON
G35: 0 | H35: 0 | I35: NON
G36: 0 | H36: 0 | I36: NON
G37: 0 | H37: 0 | I37: NON
G38: 0 | H38: 0 | I38: NON
G39: 0 | H39: 0 | I39: NON
G40: 0 | H40: 0 | I40: NON
G41: 0 | H41: 0 | I41: NON
G42: 0 | H42: 0 | I42: NON
G43: 0 | H43: 0 | I43: NON
G44: 0 | H44: 0 | I44: NON
G45: 0 | H45: 0 | I45: NON
G46: 0 | H46: 0 | I46: NON
G47: 0 | H47: 0 | I47: NON
G48: 0 | H48: 0 | I48: NON
G49: 0 | H49: 0 | I49: NON
G50: 0 | H50: 0 | I50: NON
A100: Nombre de compétences | B100: 5
A101: Taille grille évaluation | B101: =COUNTA(E4:E50) -> 0 | C101: Taille grille notation | D101: 21
A102: Nature du classeur | B102: CLASSE
A103: Stats déjà faites | B103: 0
A104: NB items par compétences | B104: 1 | C104: 2 | D104: 2 | E104: 2 | F104: 1 | G104: 0 | H104: 0 | I104: 0 | J104: 0 | K104: 0
A105: Intitulés de compétences | B105: S_APPROPRIER | C105: ANALYSER_RAISONNER | D105: RÉALISER | E105: VALIDER | F105: COMMUNIQUER | G105: 0 | H105: 0 | I105: 0 | J105: 0 | K105: 0
A106: Couleurs compétences | B106: 65535 | C106: 4911395 | D106: 12698107 | E106: 49407 | F106: 15773696 | G106: 10615289 | H106: 9803737
A107: Intitulés d'items | B107: Rechercher, extraire et organiser l'information | C107: Emettre une conjecture | D107: Choisir ou exécuter une méthode de résolution | E107: Contrôler la vraissemblance d'une conjecture | F107: Rendre compte d'une démarche | G107: 0 | H107: 0 | I107: 0 | J107: 0 | K107: 0
B108: 0 | C108: Proposer une méthode de résolution | D108: Choisir un protocole expérimental, éxécuter, simuler | E108: Critiquer un résultat, argumenter | F108: 0 | G108: 0 | H108: 0 | I108: 0 | J108: 0 | K108: 0
B109: 0 | C109: 0 | D109: 0 | E109: 0 | F109: 0 | G109: 0 | H109: 0 | I109: 0 | J109: 0 | K109: 0

Sheet Liste
A37: =COUNTA(A2:A36) -> 0 | B37: =COUNTA(B2:B36) -> 0 | C37: 0 | D37: 0 | E37: 0 | F37: =COUNTA(F2:F36) -> 0 | G37: 0 | H37: 0 | I37: 0 | J37: 0

Sheet CCF_Maths_ln_proba
A1: CLASSE | J1: GRILLE DE NOTATION | K1: CCF_Maths_ln_proba | R1: PONDÉRATION
A2: ELEVE | K2: Barème | L2: Appréciation du niveau | P2: Note | R2: Mathématiques
A3: Exercice | B3: Question | C3: Attendu | D3: Niveau | E3: Compétence | F3: Item de compétence visé | G3: Barème | H3: Note | I3: TICE | J3: S_APPROPRIER | L3: TI | M3: I | N3: S | O3: TS | R3: Note | S3: Barème
B4: 1. | C4: Protocole correct (lecture graphique ou etude de fonction) | E4: ANALYSER_RAISONNER | F4: Proposer une méthode de résolution | G4: 0.75 | H4: =G4*D4/2 -> 0 | I4: OUI | J4: Rechercher, extraire et organiser l'information | K4: =SUMIF($F$4:$F$50,J4,$G$4:$G$50) -> 2.25 | L4: =IF(K4=0,"",IF(P4/K4<0.25,"x","")) -> x | M4: =IF(K4=0,"",IF(AND(P4/K4<0.5,P4/K4>=0.25),"x","")) ->  | N4: =IF(K4=0,"",IF(AND(P4/K4<0.75,P4/K4>=0.5),"x","")) ->  | O4: =IF(K4=0,"",IF(P4/K4>0.75,"x","")) ->  | P4: =SUMIF($F$4:$F$50,J4,$H$4:$H$50) -> 0 | R4: S_APPROPRIER
C5: Communication correcte | E5: COMMUNIQUER | F5: Rendre compte d'une démarche | G5: 0.25 | H5: 0 | I5: NON | K5: =SUM(K4:K4) -> 2.25 | P5: =SUM(P4:P4) -> 0 | Q5: /2,25 | R5: =P5/K5*S5 -> 0 | S5: 1 | T5: =K5/K21 -> 0.225
B6: 2. | C6: Tableau les bornes adaptées | E6: S_APPROPRIER | F6: Rechercher, extraire et organiser l'information | G6: 0.25 | H6: 0 | I6: NON | J6: ANALYSER_RAISONNER | L6: TI | M6: I | N6: S | O6: TS | R6: ANALYSER_RAISONNER
C7: Tableau les signes et le zéro et x | E7: S_APPROPRIER | F7: Rechercher, extraire et organiser l'information | G7: 0.5 | H7: 0 | I7: NON | J7: Emettre une conjecture | K7: =SUMIF($F$4:$F$50,J7,$G$4:$G$50) -> 0 | L7: =IF(K7=0,"",IF(P7/K7<0.25,"x","")) ->  | M7: =IF(K7=0,"",IF(AND(P7/K7<0.5,P7/K7>=0.25),"x","")) ->  | N7: =IF(K7=0,"",IF(AND(P7/K7<0.75,P7/K7>=0.5),"x","")) ->  | O7: =IF(K7=0,"",IF(P7/K7>0.75,"x","")) ->  | P7: =SUMIF($F$4:$F$50,J7,$H$4:$H$50) -> 0 | R7: =P9/K9*S7 -> 0 | S7: 1 | T7: =K9/K21 -> 0.175
C8: Tableau variations de f cohérente avec signe de f'(x) | E8: RÉALISER | F8: Choisir ou exécuter une méthode de résolution | G8: 0.25 | H8: 0 | I8: NON | J8: Proposer une méthode de résolution | K8: =SUMIF($F$4:$F$50,J8,$G$4:$G$50) -> 1.75 | L8: =IF(K8=0,"",IF(P8/K8<0.25,"x","")) -> x | M8: =IF(K8=0,"",IF(AND(P8/K8<0.5,P8/K8>=0.25),"x","")) ->  | N8: =IF(K8=0,"",IF(AND(P8/K8<0.75,P8/K8>=0.5),"x","")) ->  | O8: =IF(K8=0,"",IF(P8/K8>0.75,"x","")) ->  | P8: =SUMIF($F$4:$F$50,J8,$H$4:$H$50) -> 0 | R8: RÉALISER
C9: Tableau bornes de f | E9: S_APPROPRIER | F9: Rechercher, extraire et organiser l'information | G9: 0.5 | H9: 0 | I9: NON | K9: =SUM(K7:K8) -> 1.75 | P9: =SUM(P7:P8) -> 0 | Q9: /1,75 | R9: =P13/K13*S9 -> 0 | S9: 1 | T9: =K13/K21 -> 0.325
C10: Calcul de la dérivée | E10: RÉALISER | F10: Choisir ou exécuter une méthode de résolution | G10: 0.5 | H10: 0 | I10: NON | J10: RÉALISER | L10: TI | M10: I | N10: S | O10: TS | R10: VALIDER
C11: equation f'(x)=0 | E11: RÉALISER | F11: Choisir ou exécuter une méthode de résolution | G11: 0.25 | H11: 0 | I11: NON | J11: Choisir ou exécuter une méthode de résolution | K11: =SUMIF($F$4:$F$50,J11,$G$4:$G$50) -> 3.25 | L11: =IF(K11=0,"",IF(P11/K11<0.25,"x","")) -> x | M11: =IF(K11=0,"",IF(AND(P11/K11<0.5,P11/K11>=0.25),"x","")) ->  | N11: =IF(K11=0,"",IF(AND(P11/K11<0.75,P11/K11>=0.5),"x","")) ->  | O11: =IF(K11=0,"",IF(P11/K11>0.75,"x","")) ->  | P11: =SUMIF($F$4:$F$50,J11,$H$4:$H$50) -> 0 | R11: =P17/K17*S11 -> 0 | S11: 1 | T11: =K17/K21 -> 0.075
C12: Calcul valeur inférieure et supérieure à 5 | E12: RÉALISER | F12: Choisir ou exécuter une méthode de résolution | G12: 0.25 | H12: 0 | I12: NON | J12: Choisir un protocole expérimental, éxécuter, simuler | K12: =SUMIF($F$4:$F$50,J12,$G$4:$G$50) -> 0 | L12: =IF(K12=0,"",IF(P12/K12<0.25,"x","")) ->  | M12: =IF(K12=0,"",IF(AND(P12/K12<0.5,P12/K12>=0.25),"x","")) ->  | N12: =IF(K12=0,"",IF(AND(P12/K12<0.75,P12/K12>=0.5),"x","")) ->  | O12: =IF(K12=0,"",IF(P12/K12>0.75,"x","")) ->  | P12: =SUMIF($F$4:$F$50,J12,$H$4:$H$50) -> 0 | R12: COMMUNIQUER
B13: 3. | C13: Tracer de la fonction | E13: RÉALISER | F13: Choisir ou exécuter une méthode de résolution | G13: 0.5 | H13: 0 | I13: OUI | K13: =SUM(K11:K12) -> 3.25 | P13: =SUM(P11:P12) -> 0 | Q13: /3,25 | R13: =P20/K20*S13 -> 0 | S13: 1 | T13: =K20/K21 -> 0.2
C14: Intervalle respecté | E14: RÉALISER | F14: Choisir ou exécuter une méthode de résolution | G14: 0.25 | H14: 0 | I14: OUI | J14: VALIDER | L14: TI | M14: I | N14: S | O14: TS | R14: TOTAL
C15: Recherche y=7,5 | E15: ANALYSER_RAISONNER | F15: Proposer une méthode de résolution | G15: 1 | H15: 0 | I15: OUI | J15: Contrôler la vraissemblance d'une conjecture | K15: =SUMIF($F$4:$F$50,J15,$G$4:$G$50) -> 0.25 | L15: =IF(K15=0,"",IF(P15/K15<0.25,"x","")) -> x | M15: =IF(K15=0,"",IF(AND(P15/K15<0.5,P15/K15>=0.25),"x","")) ->  | N15: =IF(K15=0,"",IF(AND(P15/K15<0.75,P15/K15>=0.5),"x","")) ->  | O15: =IF(K15=0,"",IF(P15/K15>0.75,"x","")) ->  | P15: =SUMIF($F$4:$F$50,J15,$H$4:$H$50) -> 0 | R15: =SUM(R5,R7,R9,R11,R13) -> 0 | S15: =SUM(S5,S7,S9,S11,S13) -> 5
C16: Donner les solutions x=2,68 et x=8,38 | E16: COMMUNIQUER | F16: Rendre compte d'une démarche | G16: 0.5 | H16: 0 | I16: OUI | J16: Critiquer un résultat, argumenter | K16: =SUMIF($F$4:$F$50,J16,$G$4:$G$50) -> 0.5 | L16: =IF(K16=0,"",IF(P16/K16<0.25,"x","")) -> x | M16: =IF(K16=0,"",IF(AND(P16/K16<0.5,P16/K16>=0.25),"x","")) ->  | N16: =IF(K16=0,"",IF(AND(P16/K16<0.75,P16/K16>=0.5),"x","")) ->  | O16: =IF(K16=0,"",IF(P16/K16>0.75,"x","")) ->  | P16: =SUMIF($F$4:$F$50,J16,$H$4:$H$50) -> 0 | R16: Dont TICE
C17: Utilise un vocabulaire adapté | E17: COMMUNIQUER | F17: Rendre compte d'une démarche | G17: 0.25 | H17: 0 | I17: NON | K17: =SUM(K15:K16) -> 0.75 | P17: =SUM(P15:P16) -> 0 | Q17: /0,75 | R17: =SUMIF($I$4:$I$50,"OUI",$G$4:$G$50) -> 3 | S17: =R17/K21 -> 0.3
B18: 4. | C18: Réponse à la problématique x= 5000 | E18: VALIDER | F18: Contrôler la vraissemblance d'une conjecture | G18: 0.25 | H18: 0 | I18: NON | J18: COMMUNIQUER | L18: TI | M18: I | N18: S | O18: TS
C19: Rédaction de la réponse | E19: COMMUNIQUER | F19: Rendre compte d'une démarche | G19: 0.25 | H19: 0 | I19: NON | J19: Rendre compte d'une démarche | K19: =SUMIF($F$4:$F$50,J19,$G$4:$G$50) -> 2 | L19: =IF(K19=0,"",IF(P19/K19<0.25,"x","")) -> x | M19: =IF(K19=0,"",IF(AND(P19/K19<0.5,P19/K19>=0.25),"x","")) ->  | N19: =IF(K19=0,"",IF(AND(P19/K19<0.75,P19/K19>=0.5),"x","")) ->  | O19: =IF(K19=0,"",IF(P19/K19>0.75,"x","")) ->  | P19: =SUMIF($F$4:$F$50,J19,$H$4:$H$50) -> 0
C20: y=9,09 | E20: S_APPROPRIER | F20: Rechercher, extraire et organiser l'information | G20: 0.25 | H20: 0 | I20: NON | K20: =SUM(K19:K19) -> 2 | P20: =SUM(P19:P19) -> 0 | Q20: /2
C21: Valeur du bénéfice 90,9€ | E21: COMMUNIQUER | F21: Rendre compte d'une démarche | G21: 0.25 | H21: 0 | I21: NON | K21: =SUM(K5,K9,K13,K17,K20) -> 10 | P21: =SUM(P5,P9,P13,P17,P20) -> 0 | Q21: /10
B22: 5. | C22: Entre 2680 et 8380 piéces | E22: S_APPROPRIER | F22: Rechercher, extraire et organiser l'information | G22: 0.5 | H22: 0 | I22: NON
B23: 6. | C23: Bonnes valeurs au bonne endroit | E23: S_APPROPRIER | F23: Rechercher, extraire et organiser l'information | G23: 0.25 | H23: 0 | I23: NON
C24: Calcul des valeurs manquante | E24: RÉALISER | F24: Choisir ou exécuter une méthode de résolution | G24: 0.25 | H24: 0 | I24: NON
B25: 7. | C25: Calcul de p=4/2000=2.10-3 | E25: RÉALISER | F25: Choisir ou exécuter une méthode de résolution | G25: 0.25 | H25: 0 | I25: NON
B26: 8. | C26: Traduire l'union | E26: COMMUNIQUER | F26: Rendre compte d'une démarche | G26: 0.25 | H26: 0 | I26: NON
C27: Calcul de l'union = 80/2000+100/2000-4/2000=176/2000 | E27: RÉALISER | F27: Choisir ou exécuter une méthode de résolution | G27: 0.5 | H27: 0 | I27: NON
B28: 9. | C28: Traduire l'inter | E28: COMMUNIQUER | F28: Rendre compte d'une démarche | G28: 0.25 | H28: 0 | I28: NON
C29: Calcul de l'inter | E29: RÉALISER | F29: Choisir ou exécuter une méthode de résolution | G29: 0.25 | H29: 0 | I29: NON
B30: 10. | C30: Réponse justifier | E30: VALIDER | F30: Critiquer un résultat, argumenter | G30: 0.5 | H30: 0 | I30: NON
A100: Nombre de compétences | B100: 5
A101: Taille grille évaluation | B101: =COUNTA(E4:E50) -> 27 | C101: Taille grille notation | D101: 21
A102: Nature du classeur | B102: CLASSE
A103: Stats déjà faites | B103: 0
A104: NB items par compétences | B104: 1 | C104: 2 | D104: 2 | E104: 2 | F104: 1 | G104: 0 | H104: 0 | I104: 0 | J104: 0 | K104: 0
A105: Intitulés de compétences | B105: S_APPROPRIER | C105: ANALYSER_RAISONNER | D105: RÉALISER | E105: VALIDER | F105: COMMUNIQUER | G105: 0 | H105: 0 | I105: 0 | J105: 0 | K105: 0
A106: Couleurs compétences | B106: 65535 | C106: 4911395 | D106: 12698107 | E106: 49407 | F106: 15773696 | G106: 10615289 | H106: 9803737
A107: Intitulés d'items | B107: Rechercher, extraire et organiser l'information | C107: Emettre une conjecture | D107: Choisir ou exécuter une méthode de résolution | E107: Contrôler la vraissemblance d'une conjecture | F107: Rendre compte d'une démarche | G107: 0 | H107: 0 | I107: 0 | J107: 0 | K107: 0
B108: 0 | C108: Proposer une méthode de résolution | D108: Choisir un protocole expérimental, éxécuter, simuler | E108: Critiquer un résultat, argumenter | F108: 0 | G108: 0 | H108: 0 | I108: 0 | J108: 0 | K108: 0
B109: 0 | C109: 0 | D109: 0 | E109: 0 | F109: 0 | G109: 0 | H109: 0 | I109: 0 | J109: 0 | K109: 0
